fUST/lending_fUST_20260118
["ID","MTS","AMOUNT","RATE_DAILY","PERIOD"]
[402454964,1768680648727,-2392.5,0.00016438,2]
[402454966,1768680648737,-2392.5,0.00016438,2]
[402454968,1768680648746,-500.0,0.00016438,3]
[402454970,1768680648755,-2392.5,0.00016438,2]
[402454972,1768680648765,-500.0,0.00016438,3]
[402454974,1768680648774,-500.0,0.00016438,3]
[402454976,1768680648783,-500.0,0.00016438,3]
[402454978,1768680648792,-500.0,0.00016438,3]
[402454980,1768680648802,-500.0,0.00016438,3]
[402454982,1768680648811,-2392.5,0.00016438,2]
[402454984,1768680648821,-632.04690666,0.00016438,3]
[402454986,1768680648833,-582.1,0.00016438,3]
[402454988,1768680648843,-500.0,0.00016438,3]
[402454990,1768680648852,-500.0,0.00016438,3]
[402454992,1768680648861,-2392.5,0.00016438,2]
[402454994,1768680648873,-2392.5,0.00016438,2]
[402454996,1768680648883,-932.84,0.00016438,3]
[402454998,1768680648892,-2392.5,0.00016438,2]
[402455000,1768680648903,-2392.5,0.00016438,2]
[402455002,1768680648913,-725.5,0.00016438,3]
[402455004,1768680648923,-2392.5,0.00016438,2]
[402455006,1768680648933,-2392.5,0.00016438,2]
[402455008,1768680648942,-2392.5,0.00016438,2]
[402455010,1768680648952,-2392.5,0.00016438,2]
[402455012,1768680648968,-2392.5,0.00016438,2]
[402455014,1768680648978,-500.0,0.00016438,3]
[402455016,1768680648988,-2392.5,0.00016438,2]
[402455018,1768680648998,-500.0,0.00016438,2]
[402455020,1768680649007,-2392.5,0.00016438,2]
[402455022,1768680649016,-2392.5,0.00016438,2]
[402455024,1768680649026,-2392.5,0.00016438,2]
[402455026,1768680649036,-2392.5,0.00016438,2]
[402455028,1768680649045,-500.0,0.00016438,3]
[402455030,1768680649055,-2392.5,0.00016438,2]
[402455032,1768680649064,-2392.5,0.00016438,2]
[402455034,1768680649073,-500.0,0.00016438,3]
[402455036,1768680649083,-500.0,0.00016438,3]
[402455038,1768680649092,-2392.5,0.00016438,2]
[402455040,1768680649101,-500.0,0.00016438,2]
[402455042,1768680649110,-2392.5,0.00016438,2]
[402455044,1768680649120,-2392.63255502,0.00016438,2]
[402455046,1768680649130,-500.0,0.00016438,3]
[402455048,1768680649139,-500.0,0.00016438,3]
[402455050,1768680649148,-500.0,0.00016438,3]
[402455052,1768680649158,-500.0,0.00016438,2]
[402455054,1768680649167,-500.0,0.00016438,3]
[402455056,1768680649176,-500.0,0.00016438,3]
[402455058,1768680649185,-500.0,0.00016438,3]
[402455060,1768680649195,-500.0,0.00016438,3]
[402455062,1768680649204,-500.0,0.00016438,3]
[402455064,1768680649214,-500.0,0.00016438,3]
[402455066,1768680649223,-500.0,0.00016438,3]
[402455068,1768680649233,-172.6105479,0.00016438,3]
[402455070,1768680649242,-500.0,0.00016438,3]
[402455072,1768680649252,-500.0,0.00016438,3]
[402455074,1768680649261,-500.0,0.00016438,3]
[402455076,1768680649270,-500.0,0.00016438,3]
[402455078,1768680649280,-500.0,0.00016438,3]
[402455080,1768680649289,-500.0,0.00016438,3]
[402455082,1768680649298,-500.0,0.00016438,3]
[402455084,1768680649307,-172.631544,0.00016438,3]
[402455086,1768680649317,-500.0,0.00016438,2]
[402455088,1768680649327,-1018.98,0.00016438,3]
[402455090,1768680649336,-500.0,0.00016438,3]
[402455092,1768680649345,-479.17924292,0.00016438,2]
[402455094,1768680649355,-500.0,0.00016438,3]
[402455096,1768680649364,-500.0,0.00016438,3]
[402455098,1768680649374,-968.96,0.00016438,3]
[402455100,1768680649383,-570.16,0.00016438,3]
[402455102,1768680649393,-500.0,0.00016438,3]
[402455104,1768680649403,-500.0,0.00016438,3]
[402455106,1768680649412,-500.0,0.00016438,3]
[402455108,1768680649422,-500.0,0.00016438,3]
[402455110,1768680649431,-500.0,0.00016438,3]
[402455112,1768680649441,-500.0,0.00016438,3]
[402455114,1768680649450,-500.0,0.00016438,3]
[402455116,1768680649460,-500.0,0.00016438,3]
[402455117,1768680649469,-200.53732028,0.00016438,3]
[402455119,1768680649479,-158.856128,0.00016438,3]
[402455122,1768680649490,-817.35,0.00016438,3]
[402455124,1768680649499,-500.0,0.00016438,3]
[402455126,1768680649508,-2319.11,0.00016438,3]
[402455128,1768680649517,-500.0,0.00016438,3]
[402455129,1768680649527,-500.0,0.00016438,3]
[402455132,1768680649538,-500.0,0.00016438,3]
[402455133,1768680649548,-500.0,0.00016438,3]
[402455135,1768680649558,-809.91,0.00016438,3]
[402455137,1768680649567,-501.47481174,0.00016438,3]
[402455139,1768680649576,-552.32,0.00016438,3]
[402455141,1768680649585,-1146.04,0.00016438,3]
[402455143,1768680649594,-500.0,0.00016438,3]
[402455145,1768680649604,-500.0,0.00016438,3]
[402455147,1768680649613,-1123.61,0.00016438,3]
[402455149,1768680649623,-500.0,0.00016438,2]
[402455151,1768680649632,-3000.0,0.00016438,2]
[402455153,1768680649641,-3000.0,0.0001644,2]
[402455155,1768680649650,-3264.297449,0.0001645,2]
[402455157,1768680649659,-2183.31810187,0.00016452,2]
[402455159,1768680649668,-2264.10087164,0.00016507,2]
[402455161,1768680649677,-1498.58969849,0.00016562,2]
[402455163,1768680649686,-500.0,0.00016712,3]
[402455165,1768680649698,-500.0,0.00016712,3]
[402455168,1768680649711,-500.0,0.00016712,3]
[402455170,1768680649725,-1000.0,0.00016712,2]
[402455172,1768680649737,-702.73,0.00016712,3]
[402455175,1768680649750,-521.93686507,0.00016712,3]
[402455177,1768680649760,-500.0,0.00016712,3]
[402455179,1768680649772,-500.0,0.00016712,3]
[402455181,1768680649785,-500.0,0.00016712,3]
[402455183,1768680649797,-500.0,0.00016712,3]
[402455186,1768680649810,-620.31508398,0.00016712,3]
[402455188,1768680649824,-901.49,0.00016712,3]
[402455190,1768680649838,-500.0,0.00016712,3]
[402455192,1768680649849,-500.0,0.00016712,3]
[402455195,1768680649863,-500.0,0.00016712,3]
[402455197,1768680649878,-500.0,0.00016712,3]
[402455199,1768680649890,-500.0,0.00016712,3]
[402455201,1768680649903,-500.0,0.00016712,3]
[402455204,1768680649915,-500.0,0.00016712,3]
[402455206,1768680649926,-578.0,0.00016712,3]
[402455208,1768680649938,-542.82,0.00016712,3]
[402455209,1768680649948,-500.0,0.00016712,3]
[402455210,1768680649967,-574.11,0.00016712,3]
[402455211,1768680649978,-691.15,0.00016712,3]
[402455212,1768680649989,-1047.7,0.00016712,3]
[402455213,1768680650000,-500.0,0.00016712,3]
[402455214,1768680650011,-500.0,0.00016712,3]
[402455215,1768680650021,-500.0,0.00016712,3]
[402455216,1768680650033,-500.0,0.00016712,3]
[402455217,1768680650045,-500.0,0.00016712,3]
[402455218,1768680650057,-275.38497984,0.00016712,3]
[402455219,1768680650068,-500.0,0.00016712,3]
[402455220,1768680650080,-500.0,0.00016712,3]
[402455221,1768680650092,-500.0,0.00016712,3]
[402455222,1768680650109,-500.0,0.00016712,3]
[402455223,1768680650121,-453.08603643,0.00016712,3]
[402455224,1768680650131,-500.0,0.00016712,3]
[402455226,1768680650141,-716.8,0.00016712,3]
[402455227,1768680650152,-500.0,0.00016712,3]
[402455229,1768680650163,-500.0,0.00016712,3]
[402455231,1768680650175,-559.01,0.00016712,3]
[402455234,1768680650190,-605.0,0.00016712,3]
[402455236,1768680650203,-500.0,0.00016712,3]
[402455238,1768680650214,-500.0,0.00016712,3]
[402455240,1768680650226,-500.0,0.00016712,3]
[402455243,1768680650238,-500.0,0.00016712,3]
[402455245,1768680650249,-548.05,0.00016712,3]
[402455247,1768680650261,-500.0,0.00016712,3]
[402455249,1768680650273,-500.0,0.00016712,3]
[402455251,1768680650283,-500.0,0.00016712,3]
[402455254,1768680650293,-500.0,0.00016712,3]
[402455256,1768680650303,-946.33,0.00016712,3]
[402455258,1768680650315,-500.0,0.00016712,3]
[402455260,1768680650326,-500.0,0.00016712,3]
[402455262,1768680650337,-500.0,0.00016712,3]
[402455264,1768680650348,-668.42,0.00016712,3]
[402455267,1768680650359,-500.0,0.00016712,3]
[402455269,1768680650370,-500.0,0.00016712,3]
[402455271,1768680650382,-500.0,0.00016712,3]
[402455273,1768680650394,-500.0,0.00016712,3]
[402455275,1768680650405,-500.0,0.00016712,3]
[402455278,1768680650416,-502.2,0.00016712,3]
[402455280,1768680650427,-500.0,0.00016712,3]
[402455282,1768680650438,-500.0,0.00016712,3]
[402455284,1768680650449,-500.0,0.00016712,3]
[402455286,1768680650459,-395.32581344,0.00016712,3]
[402455288,1768680650469,-500.0,0.00016712,3]
[402455290,1768680650480,-500.0,0.00016712,3]
[402455292,1768680650491,-500.0,0.00016712,3]
[402455295,1768680650503,-500.0,0.00016712,3]
[402455297,1768680650514,-500.0,0.00016712,3]
[402455299,1768680650526,-560.2982487,0.00016712,3]
[402455301,1768680650537,-1001.13,0.00016712,3]
[402455303,1768680650547,-500.0,0.00016712,3]
[402455305,1768680650558,-586.6276719,0.00016712,3]
[402455307,1768680650569,-795.63,0.00016712,3]
[402455309,1768680650580,-681.88,0.00016712,3]
[402455312,1768680650591,-610.18,0.00016712,3]
[402455314,1768680650603,-358.09548366,0.00016712,3]
[402455316,1768680650614,-919.37,0.00016712,3]
[402455318,1768680650625,-500.0,0.00016712,3]
[402455320,1768680650636,-500.0,0.00016712,3]
[402455323,1768680650647,-500.0,0.00016712,3]
[402455325,1768680650658,-803.45,0.00016712,3]
[402455327,1768680650669,-1421.56,0.00016712,3]
[402455329,1768680650680,-500.0,0.00016712,3]
[402455331,1768680650691,-799.69,0.00016712,3]
[402455333,1768680650702,-775.52,0.00016712,3]
[402455335,1768680650713,-257.29403538,0.00016712,3]
[402455338,1768680650723,-500.0,0.00016712,3]
[402455340,1768680650734,-500.0,0.00016712,3]
[402455342,1768680650745,-500.0,0.00016712,3]
[402455344,1768680650756,-500.0,0.00016712,3]
[402455346,1768680650767,-500.0,0.00016712,3]
[402455349,1768680650781,-842.59,0.00016712,3]
[402455351,1768680650791,-500.0,0.00016712,3]
[402455353,1768680650802,-822.16,0.00016712,3]
[402455355,1768680650813,-500.0,0.00016712,3]
[402455357,1768680650825,-500.0,0.00016712,3]
[402455359,1768680650836,-500.0,0.00016712,3]
[402455361,1768680650848,-500.0,0.00016712,3]
[402455364,1768680650859,-159.17857658,0.00016712,3]
[402455366,1768680650871,-500.0,0.00016712,3]
[402455368,1768680650881,-500.0,0.00016712,3]
[402455370,1768680650892,-500.0,0.00016712,3]
[402455372,1768680650905,-500.0,0.00016712,3]
[402455374,1768680650916,-500.0,0.00016712,3]
[402455376,1768680650926,-540.45385614,0.00016712,3]
[402455378,1768680650937,-500.0,0.00016712,3]
[402455380,1768680650948,-500.0,0.00016712,2]
[402455383,1768680650959,-500.0,0.00016712,3]
[402455385,1768680650970,-1077.4,0.00016712,3]
[402455387,1768680650981,-1003.48,0.00016712,3]
[402455389,1768680650992,-806.24,0.00016712,3]
[402455391,1768680651003,-681.61,0.00016712,3]
[402455393,1768680651014,-500.0,0.00016712,3]
[402455395,1768680651025,-500.0,0.00016712,3]
[402455397,1768680651036,-500.0,0.00016712,3]
[402455399,1768680651047,-500.0,0.00016712,3]
[402455402,1768680651058,-483.43506742,0.00016712,3]
[402455404,1768680651068,-645.22,0.00016712,3]
[402455406,1768680651079,-1314.52,0.00016712,3]
[402455408,1768680651089,-599.92,0.00016712,3]
[402455410,1768680651100,-641.05,0.00016712,3]
[402455412,1768680651111,-544.42342876,0.00016712,3]
[402455414,1768680651123,-500.0,0.00016712,3]
[402455417,1768680651135,-500.0,0.00016712,3]
[402455419,1768680651146,-500.0,0.00016712,3]
[402455421,1768680651156,-500.0,0.00016712,3]
[402455423,1768680651168,-500.0,0.00016712,3]
[402455425,1768680651179,-719.55,0.00016712,3]
[402455428,1768680651190,-500.0,0.00016712,3]
[402455430,1768680651202,-1000.0,0.00016712,2]
[402455431,1768680651213,-500.0,0.00016712,3]
[402455434,1768680651225,-500.0,0.00016712,3]
[402455436,1768680651237,-500.0,0.00016712,3]
[402455438,1768680651247,-500.0,0.00016712,3]
[402455440,1768680651258,-500.0,0.00016712,3]
[402455442,1768680651269,-500.0,0.00016712,3]
[402455444,1768680651280,-500.0,0.00016712,3]
[402455446,1768680651291,-500.0,0.00016712,3]
[402455449,1768680651303,-1209.49,0.00016712,3]
[402455451,1768680651314,-955.59,0.00016712,3]
[402455453,1768680651325,-500.0,0.00016712,3]
[402455455,1768680651336,-500.0,0.00016712,3]
[402455457,1768680651347,-500.0,0.00016712,3]
[402455459,1768680651358,-500.0,0.00016712,3]
[402455461,1768680651369,-734.88,0.00016712,3]
[402455464,1768680651380,-566.56,0.00016712,3]
[402455466,1768680651391,-500.0,0.00016712,3]
[402455468,1768680651402,-500.0,0.00016712,3]
[402455470,1768680651412,-302.42547068,0.00016712,3]
[402455472,1768680651423,-500.0,0.00016712,3]
[402455474,1768680651434,-500.0,0.00016712,3]
[402455476,1768680651445,-566.1,0.00016712,3]
[402455478,1768680651456,-500.0,0.00016712,3]
[402455480,1768680651466,-500.0,0.00016712,3]
[402455482,1768680651477,-500.0,0.00016712,3]
[402455485,1768680651488,-500.0,0.00016712,3]
[402455487,1768680651499,-500.0,0.00016712,3]
[402455489,1768680651511,-500.0,0.00016712,3]
[402455491,1768680651522,-500.0,0.00016712,3]
[402455493,1768680651534,-500.0,0.00016712,3]
[402455495,1768680651545,-500.0,0.00016712,3]
[402455497,1768680651555,-914.46,0.00016712,3]
[402455499,1768680651566,-500.0,0.00016712,3]
[402455502,1768680651577,-738.38,0.00016712,3]
[402455504,1768680651588,-500.0,0.00016712,3]
[402455506,1768680651599,-900.03,0.00016712,3]
[402455508,1768680651610,-500.0,0.00016712,3]
[402455510,1768680651621,-1099.86,0.00016712,3]
[402455512,1768680651632,-500.0,0.00016712,3]
[402455515,1768680651644,-500.0,0.00016712,3]
[402455517,1768680651655,-500.0,0.00016712,3]
[402455519,1768680651666,-500.0,0.00016712,3]
[402455521,1768680651676,-500.0,0.00016712,3]
[402455523,1768680651687,-500.0,0.00016712,3]
[402455525,1768680651698,-500.0,0.00016712,3]
[402455527,1768680651709,-741.43,0.00016712,3]
[402455529,1768680651720,-579.54,0.00016712,3]
[402455531,1768680651731,-231.71584647,0.00016712,3]
[402455534,1768680651742,-500.0,0.00016712,3]
[402455536,1768680651752,-544.37,0.00016712,3]
[402455538,1768680651762,-500.0,0.00016712,3]
[402455540,1768680651773,-536.25086162,0.00016712,3]
[402455542,1768680651783,-500.0,0.00016712,3]
[402455543,1768680651794,-500.0,0.00016712,3]
[402455545,1768680651805,-595.68293991,0.00016712,3]
[402455547,1768680651816,-500.0,0.00016712,3]
[402455549,1768680651832,-1135.02,0.00016712,3]
[402455551,1768680651842,-500.0,0.00016712,3]
[402455553,1768680651852,-500.0,0.00016712,3]
[402455555,1768680651863,-500.0,0.00016712,3]
[402455558,1768680651875,-1457.74,0.00016712,3]
[402455560,1768680651885,-500.0,0.00016712,3]
[402455562,1768680651897,-500.0,0.00016712,3]
[402455564,1768680651907,-1206.15,0.00016712,3]
[402455566,1768680651918,-638.0,0.00016712,3]
[402455568,1768680651928,-500.0,0.00016712,3]
[402455570,1768680651938,-561.09,0.00016712,3]
[402455572,1768680651948,-500.0,0.00016712,3]
[402455574,1768680651959,-542.03,0.00016712,3]
[402455576,1768680651970,-500.0,0.00016712,3]
[402455578,1768680651980,-500.0,0.00016712,3]
[402455580,1768680651991,-500.0,0.00016712,3]
[402455583,1768680652002,-500.0,0.00016712,3]
[402455585,1768680652012,-500.0,0.00016712,3]
[402455587,1768680652022,-755.07,0.00016712,3]
[402455589,1768680652033,-500.0,0.00016712,3]
[402455591,1768680652043,-595.44134723,0.00016712,3]
[402455593,1768680652053,-500.0,0.00016712,3]
[402455595,1768680652064,-500.0,0.00016712,3]
[402455597,1768680652074,-500.0,0.00016712,3]
[402455599,1768680652084,-500.0,0.00016712,3]
[402455601,1768680652095,-500.0,0.00016712,3]
[402455603,1768680652105,-535.77,0.00016712,3]
[402455605,1768680652115,-655.03,0.00016712,3]
[402455607,1768680652126,-500.0,0.00016712,3]
[402455610,1768680652137,-500.0,0.00016712,3]
[402455611,1768680652148,-500.0,0.00016712,3]
[402455613,1768680652159,-584.87,0.00016712,3]
[402455615,1768680652169,-500.0,0.00016712,3]
[402455618,1768680652181,-500.0,0.00016712,3]
[402455620,1768680652191,-500.0,0.00016712,3]
[402455622,1768680652202,-500.0,0.00016712,3]
[402455624,1768680652212,-500.0,0.00016712,3]
[402455626,1768680652223,-1353.4,0.00016712,3]
[402455628,1768680652234,-500.0,0.00016712,3]
[402455630,1768680652245,-1059.76,0.00016712,3]
[402455632,1768680652255,-1200.0,0.00016712,2]
[402455634,1768680652265,-500.0,0.00016712,3]
[402455635,1768680652276,-500.0,0.00016712,3]
[402455636,1768680652286,-500.0,0.00016712,3]
[402455637,1768680652296,-500.0,0.00016712,3]
[402455638,1768680652306,-500.0,0.00016712,3]
[402455639,1768680652316,-500.0,0.00016712,3]
[402455640,1768680652328,-500.0,0.00016712,3]
[402455641,1768680652338,-500.0,0.00016712,3]
[402455642,1768680652348,-500.0,0.00016712,3]
[402455643,1768680652358,-500.0,0.00016712,3]
[402455644,1768680652368,-500.0,0.00016712,3]
[402455645,1768680652378,-580.81,0.00016712,3]
[402455646,1768680652388,-527.76,0.00016712,3]
[402455647,1768680652398,-500.0,0.00016712,3]
[402455648,1768680652408,-847.23,0.00016712,3]
[402455649,1768680652418,-500.0,0.00016712,3]
[402455650,1768680652428,-500.0,0.00016712,3]
[402455651,1768680652438,-500.0,0.00016712,3]
[402455652,1768680652448,-668.91,0.00016712,3]
[402455653,1768680652458,-500.0,0.00016712,3]
[402455654,1768680652469,-600.65,0.00016712,3]
[402455655,1768680652479,-500.0,0.00016712,3]
[402455656,1768680652489,-500.0,0.00016712,3]
[402455657,1768680652499,-151.0,0.00016712,2]
[402455658,1768680652508,-500.0,0.00016712,3]
[402455659,1768680652519,-151.0,0.00016712,2]
[402455660,1768680652529,-500.0,0.00016712,3]
[402455661,1768680652539,-151.0,0.00016712,2]
[402455662,1768680652550,-500.0,0.00016712,3]
[402455663,1768680652559,-151.0,0.00016712,2]
[402455664,1768680652570,-1055.28,0.00016712,3]
[402455665,1768680652580,-637.05,0.00016712,3]
[402455666,1768680652591,-544.04779014,0.00016712,3]
[402455687,1768680652971,-500.0,0.00016712,3]
[402455691,1768680653003,-500.0,0.00016712,3]
[402455694,1768680653025,-500.0,0.00016712,3]
[402455696,1768680653036,-500.0,0.00016712,3]
[402455698,1768680653046,-1216.57,0.00016712,3]
[402455700,1768680653056,-611.98339815,0.00016712,3]
[402455702,1768680653066,-517.21,0.00016712,3]
[402455704,1768680653077,-636.97,0.00016712,3]
[402455706,1768680653087,-500.0,0.00016712,3]
[402455708,1768680653098,-500.0,0.00016712,3]
[402455710,1768680653108,-500.0,0.00016712,3]
[402455712,1768680653117,-500.0,0.00016712,3]
[402455714,1768680653132,-500.0,0.00016712,3]
[402455716,1768680653141,-614.66,0.00016712,3]
[402455718,1768680653150,-565.35,0.00016712,3]
[402455720,1768680653160,-500.0,0.00016712,3]
[402455722,1768680653169,-500.0,0.00016712,3]
[402455724,1768680653179,-500.0,0.00016712,3]
[402455726,1768680653188,-500.0,0.00016712,3]
[402455728,1768680653197,-500.0,0.00016712,3]
[402455730,1768680653206,-500.0,0.00016712,3]
[402455732,1768680653216,-500.0,0.00016712,3]
[402455734,1768680653225,-826.46,0.00016712,3]
[402455736,1768680653239,-500.0,0.00016712,3]
[402455738,1768680653249,-500.0,0.00016712,3]
[402455740,1768680653258,-500.0,0.00016712,3]
[402455742,1768680653267,-500.0,0.00016712,3]
[402455744,1768680653276,-500.0,0.00016712,3]
[402455745,1768680653286,-500.0,0.00016712,3]
[402455747,1768680653295,-880.45,0.00016712,3]
[402455749,1768680653304,-735.0,0.00016712,3]
[402455751,1768680653313,-500.0,0.00016712,3]
[402455753,1768680653323,-1034.05,0.00016712,3]
[402455755,1768680653332,-500.0,0.00016712,3]
[402455757,1768680653341,-500.0,0.00016712,3]
[402455759,1768680653350,-500.0,0.00016712,3]
[402455761,1768680653360,-500.0,0.00016712,3]
[402455763,1768680653369,-543.64406781,0.00016712,3]
[402455765,1768680653378,-535.81,0.00016712,3]
[402455767,1768680653388,-1027.04,0.00016712,3]
[402455769,1768680653397,-544.8,0.00016712,3]
[402455771,1768680653406,-500.0,0.00016712,3]
[402455773,1768680653415,-500.0,0.00016712,3]
[402455775,1768680653423,-1017.02,0.00016712,3]
[402455776,1768680653432,-500.0,0.00016712,3]
[402455778,1768680653443,-500.0,0.00016712,3]
[402455780,1768680653453,-500.0,0.00016712,3]
[402455782,1768680653462,-500.0,0.00016712,3]
[402455784,1768680653471,-1987.01,0.00016712,3]
[402455786,1768680653482,-500.0,0.00016712,3]
[402455788,1768680653491,-500.0,0.00016712,3]
[402455790,1768680653500,-793.73,0.00016712,3]
[402455792,1768680653508,-500.0,0.00016712,3]
[402455794,1768680653517,-500.0,0.00016712,3]
[402455796,1768680653526,-1079.32,0.00016712,3]
[402455798,1768680653535,-500.0,0.00016712,3]
[402455800,1768680653544,-500.0,0.00016712,3]
[402455802,1768680653554,-500.0,0.00016712,3]
[402455804,1768680653564,-583.68,0.00016712,3]
[402455806,1768680653573,-500.0,0.00016712,3]
[402455808,1768680653583,-500.0,0.00016712,3]
[402455810,1768680653592,-293.31393947,0.00016712,3]
[402455812,1768680653601,-500.0,0.00016712,3]
[402455814,1768680653611,-500.0,0.00016712,3]
[402455816,1768680653621,-895.32,0.00016712,3]
[402455818,1768680653630,-770.07,0.00016712,3]
[402455820,1768680653639,-500.0,0.00016712,3]
[402455822,1768680653648,-500.0,0.00016712,3]
[402455824,1768680653657,-500.0,0.00016712,3]
[402455826,1768680653666,-667.44,0.00016712,3]
[402455827,1768680653676,-500.0,0.00016712,3]
[402455829,1768680653685,-500.0,0.00016712,3]
[402455831,1768680653695,-500.0,0.00016712,3]
[402455833,1768680653704,-585.26643986,0.00016712,3]
[402455835,1768680653714,-500.0,0.00016712,3]
[402455837,1768680653723,-500.0,0.00016712,3]
[402455839,1768680653733,-760.25,0.00016712,3]
[402455841,1768680653742,-520.11533146,0.00016712,3]
[402455843,1768680653752,-500.0,0.00016712,3]
[402455845,1768680653762,-532.59,0.00016712,3]
[402455847,1768680653771,-500.0,0.00016712,3]
[402455849,1768680653781,-500.0,0.00016712,3]
[402455851,1768680653790,-500.0,0.00016712,3]
[402455853,1768680653799,-500.0,0.00016712,3]
[402455855,1768680653808,-555.66,0.00016712,3]
[402455857,1768680653818,-500.0,0.00016712,3]
[402455859,1768680653829,-500.0,0.00016712,3]
[402455861,1768680653838,-500.0,0.00016712,3]
[402455863,1768680653848,-500.0,0.00016712,3]
[402455865,1768680653858,-500.0,0.00016712,3]
[402455867,1768680653870,-778.89,0.00016712,3]
[402455869,1768680653880,-509.24,0.00016712,3]
[402455871,1768680653889,-500.0,0.00016712,3]
[402455872,1768680653899,-500.0,0.00016712,3]
[402455874,1768680653909,-1420.19,0.00016712,3]
[402455876,1768680653919,-500.0,0.00016712,3]
[402455878,1768680653928,-951.27,0.00016712,3]
[402455880,1768680653937,-669.06,0.00016712,3]
[402455882,1768680653948,-10906.95,0.00016712,3]
[402455884,1768680653959,-500.0,0.00016712,3]
[402455887,1768680653968,-764.59,0.00016712,3]
[402455889,1768680653978,-500.0,0.00016712,3]
[402455890,1768680653987,-500.0,0.00016712,3]
[402455893,1768680653997,-500.0,0.00016712,3]
[402455895,1768680654006,-500.0,0.00016712,3]
[402455897,1768680654016,-1161.1,0.00016712,3]
[402455899,1768680654026,-500.0,0.00016712,3]
[402455901,1768680654036,-632.14,0.00016712,3]
[402455903,1768680654046,-500.0,0.00016712,3]
[402455905,1768680654056,-500.0,0.00016712,3]
[402455907,1768680654065,-500.0,0.00016712,3]
[402455909,1768680654075,-500.0,0.00016712,3]
[402455911,1768680654085,-1332.15,0.00016712,3]
[402455913,1768680654094,-883.07,0.00016712,3]
[402455915,1768680654103,-694.52,0.00016712,3]
[402455917,1768680654112,-832.57,0.00016712,3]
[402455919,1768680654122,-500.0,0.00016712,3]
[402455921,1768680654132,-500.0,0.00016712,3]
[402455923,1768680654141,-500.0,0.00016712,3]
[402455925,1768680654151,-1045.91,0.00016712,3]
[402455927,1768680654161,-500.0,0.00016712,3]
[402455928,1768680654170,-726.59,0.00016712,3]
[402455930,1768680654180,-500.0,0.00016712,3]
[402455932,1768680654189,-606.2,0.00016712,3]
[402455934,1768680654199,-500.0,0.00016712,3]
[402455936,1768680654209,-523.94812621,0.00016712,3]
[402455938,1768680654219,-500.0,0.00016712,3]
[402455940,1768680654228,-500.0,0.00016712,3]
[402455942,1768680654238,-500.0,0.00016712,3]
[402455944,1768680654248,-500.0,0.00016712,3]
[402455946,1768680654258,-1061.57,0.00016712,3]
[402455948,1768680654267,-500.0,0.00016712,3]
[402455950,1768680654279,-500.0,0.00016712,3]
[402455952,1768680654288,-500.0,0.00016712,3]
[402455954,1768680654298,-500.0,0.00016712,3]
[402455956,1768680654308,-500.0,0.00016712,3]
[402455958,1768680654318,-500.0,0.00016712,3]